lending/lending_fUSD_20250121
["ID","MTS","AMOUNT","RATE_DAILY","PERIOD"]
[349842496,1737457839532,-500.0,0.00019178,2]
[349842497,1737457839542,-500.0,0.00019178,2]
[349842498,1737457839552,-506.17262929,0.00019178,2]
[349842499,1737457839561,-500.0,0.00019178,2]
[349842500,1737457839571,-500.0,0.00019178,2]
[349842501,1737457839580,-511.17,0.00019178,2]
[349842502,1737457839589,-500.0,0.00019178,2]
[349842503,1737457839599,-500.0,0.00019178,2]
[349842504,1737457839608,-504.47477566,0.00019178,2]
[349842505,1737457839617,-503.08975116,0.00019178,2]
[349842506,1737457839626,-519.18,0.00019178,2]
[349842507,1737457839638,-500.0,0.00019178,2]
[349842508,1737457839647,-505.16849597,0.00019178,2]
[349842509,1737457839657,-500.0,0.00019178,2]
[349842510,1737457839667,-500.0,0.00019178,2]
[349842511,1737457839676,-500.0,0.00019178,2]
[349842512,1737457839685,-500.0,0.00019178,2]
[349842513,1737457839694,-514.67849806,0.00019178,2]
[349842514,1737457839703,-500.0,0.00019178,2]
[349842515,1737457839713,-500.0,0.00019178,2]
[349842516,1737457839722,-500.0,0.00019178,2]
[349842517,1737457839732,-500.0,0.00019178,2]
[349842518,1737457839741,-500.0,0.00019178,2]
[349842519,1737457839751,-500.0,0.00019178,2]
[349842520,1737457839760,-500.0,0.00019178,2]
[349842521,1737457839770,-500.0,0.00019178,2]
[349842522,1737457839780,-500.0,0.00019178,2]
[349842523,1737457839789,-500.0,0.00019178,2]
[349842524,1737457839799,-500.0,0.00019178,2]
[349842526,1737457839809,-500.0,0.00019178,2]
[349842528,1737457839818,-500.0,0.00019178,2]
[349842529,1737457839827,-500.0,0.00019178,2]
[349842530,1737457839836,-500.0,0.00019178,2]
[349842531,1737457839846,-500.0,0.00019178,2]
[349842532,1737457839855,-502.77695158,0.00019178,2]
[349842533,1737457839864,-500.0,0.00019178,2]
[349842534,1737457839873,-500.0,0.00019178,2]
[349842535,1737457839883,-500.0,0.00019178,2]
[349842536,1737457839892,-500.0,0.00019178,2]
[349842537,1737457839903,-638.19262268,0.00019178,2]
[349842538,1737457839912,-500.0,0.00019178,2]
[349842539,1737457839921,-500.0,0.00019178,2]
[349842540,1737457839931,-505.36990196,0.00019178,2]
[349842541,1737457839940,-500.0,0.00019178,2]
[349842542,1737457839949,-505.6,0.00019178,2]
[349842543,1737457839958,-504.76860549,0.00019178,2]
[349842544,1737457839967,-1136.43,0.00019178,2]
[349842545,1737457839977,-500.0,0.00019178,2]
[349842546,1737457839986,-500.0,0.00019178,2]
[349842547,1737457839995,-500.0,0.00019178,2]
[349842548,1737457840005,-500.0,0.00019178,2]
[349842549,1737457840015,-508.44848657,0.00019178,2]
[349842550,1737457840024,-500.0,0.00019178,2]
[349842551,1737457840032,-500.0,0.00019178,2]
[349842552,1737457840042,-500.0,0.00019178,2]
[349842553,1737457840053,-500.0,0.00019178,2]
[349842554,1737457840062,-500.0,0.00019178,2]
[349842555,1737457840072,-500.0,0.00019178,2]
[349842556,1737457840081,-500.0,0.00019178,2]
[349842557,1737457840091,-522.44427979,0.00019178,2]
[349842558,1737457840100,-500.0,0.00019178,2]
[349842559,1737457840110,-500.0,0.00019178,2]
[349842560,1737457840121,-500.0,0.00019178,2]
[349842561,1737457840132,-500.0,0.00019178,2]
[349842562,1737457840142,-500.0,0.00019178,2]
[349842563,1737457840151,-500.0,0.00019178,2]
[349842564,1737457840161,-500.0,0.00019178,2]
[349842565,1737457840171,-500.0,0.00019178,2]
[349842566,1737457840181,-500.0,0.00019178,2]
[349842567,1737457840191,-500.0,0.00019178,2]
[349842568,1737457840205,-500.0,0.00019178,2]
[349842569,1737457840215,-632.39767426,0.00019178,2]
[349842570,1737457840224,-500.0,0.00019178,2]
[349842571,1737457840234,-500.0,0.00019178,2]
[349842572,1737457840245,-590.93973796,0.00019178,2]
[349842573,1737457840255,-500.0,0.00019178,2]
[349842574,1737457840264,-500.0,0.00019178,2]
[349842575,1737457840274,-500.0,0.00019178,2]
[349842576,1737457840285,-500.0,0.00019178,2]
[349842577,1737457840294,-500.0,0.00019178,2]
[349842578,1737457840304,-503.8154052,0.00019178,2]
[349842579,1737457840313,-500.0,0.00019178,2]
[349842580,1737457840323,-500.0,0.00019178,2]
[349842581,1737457840333,-500.0,0.00019178,2]
[349842583,1737457840343,-500.0,0.00019178,2]
[349842585,1737457840352,-500.0,0.00019178,2]
[349842586,1737457840361,-500.0,0.00019178,2]
[349842587,1737457840371,-500.0,0.00019178,2]
[349842588,1737457840381,-615.73493669,0.00019178,2]
[349842589,1737457840390,-500.0,0.00019178,2]
[349842590,1737457840400,-500.0,0.00019178,2]
[349842591,1737457840409,-500.0,0.00019178,2]
[349842592,1737457840418,-500.0,0.00019178,2]
[349842593,1737457840427,-221.60555751,0.00019178,2]
[349842594,1737457840436,-518.94,0.00019178,2]
[349842595,1737457840446,-500.0,0.00019178,2]
[349842596,1737457840455,-500.0,0.00019178,2]
[349842597,1737457840464,-500.0,0.00019178,2]
[349842598,1737457840473,-500.0,0.00019178,2]
[349842599,1737457840482,-500.0,0.00019178,2]
[349842600,1737457840495,-504.58326666,0.00019178,2]
[349842601,1737457840516,-500.0,0.00019178,2]
[349842602,1737457840536,-500.0,0.00019178,2]
[349842603,1737457840558,-500.0,0.00019178,2]
[349842604,1737457840579,-500.0,0.00019178,2]
[349842605,1737457840609,-500.0,0.00019178,2]
[349842606,1737457840643,-500.0,0.00019178,2]
[349842607,1737457840702,-500.0,0.00019178,2]
[349842608,1737457840756,-506.63219566,0.00019178,2]
[349842609,1737457840767,-501.94683559,0.00019178,2]
[349842610,1737457840778,-500.0,0.00019178,2]
[349842611,1737457840788,-317.94725389,0.00019178,2]
[349842612,1737457840798,-500.0,0.00019178,2]
[349842613,1737457840810,-500.0,0.00019178,2]
[349842614,1737457840819,-506.99781126,0.00019178,2]
[349842615,1737457840829,-500.0,0.00019178,2]
[349842616,1737457840838,-500.0,0.00019178,2]
[349842617,1737457840848,-500.0,0.00019178,2]
[349842618,1737457840858,-502.48690263,0.00019178,2]
[349842619,1737457840867,-500.0,0.00019178,2]
[349842620,1737457840877,-500.0,0.00019178,2]
[349842621,1737457840894,-500.0,0.00019178,2]
[349842622,1737457840903,-500.0,0.00019178,2]
[349842623,1737457840912,-500.0,0.00019178,2]
[349842624,1737457840921,-500.0,0.00019178,2]
[349842625,1737457840930,-500.0,0.00019178,2]
[349842626,1737457840939,-501.43952309,0.00019178,2]
[349842627,1737457840949,-500.0,0.00019178,2]
[349842628,1737457840958,-500.0,0.00019178,2]
[349842629,1737457841126,-504.21148236,0.00019178,2]
[349842630,1737457841145,-1123.28,0.00019178,2]
[349842631,1737457841156,-500.0,0.00019178,2]
[349842632,1737457841166,-500.0,0.00019178,2]
[349842633,1737457841175,-5189.03,0.00019178,2]
[349842634,1737457841186,-500.0,0.00019178,2]
[349842635,1737457841197,-500.0,0.00019178,2]
[349842636,1737457841208,-503.1076112,0.00019178,2]
[349842637,1737457841221,-500.0,0.00019178,2]
[349842638,1737457841231,-500.0,0.00019178,2]
[349842639,1737457841241,-500.0,0.00019178,2]
[349842640,1737457841252,-500.0,0.00019178,2]
[349842641,1737457841264,-500.0,0.00019178,2]
[349842642,1737457841275,-500.0,0.00019178,2]
[349842643,1737457841284,-500.0,0.00019178,2]
[349842644,1737457841294,-500.0,0.00019178,2]
[349842645,1737457841304,-500.0,0.00019178,2]
[349842646,1737457841313,-500.0,0.00019178,2]
[349842647,1737457841323,-500.0,0.00019178,2]
[349842648,1737457841332,-500.0,0.00019178,2]
[349842649,1737457841341,-500.0,0.00019178,2]
[349842650,1737457841351,-500.0,0.00019178,2]
[349842651,1737457841361,-673.79,0.00019178,2]
[349842652,1737457841371,-500.0,0.00019178,2]
[349842653,1737457841384,-500.0,0.00019178,2]
[349842654,1737457841394,-500.0,0.00019178,2]
[349842655,1737457841403,-500.0,0.00019178,2]
[349842656,1737457841413,-500.0,0.00019178,2]
[349842657,1737457841422,-500.0,0.00019178,2]
[349842658,1737457841432,-500.0,0.00019178,2]
[349842659,1737457841441,-501.28471528,0.00019178,2]
[349842660,1737457841451,-500.0,0.00019178,2]
[349842661,1737457841461,-500.0,0.00019178,2]
[349842662,1737457841470,-500.0,0.00019178,2]
[349842663,1737457841479,-500.0,0.00019178,2]
[349842664,1737457841489,-663.28,0.00019178,2]
[349842665,1737457841499,-500.0,0.00019178,2]
[349842666,1737457841508,-500.0,0.00019178,2]
[349842667,1737457841517,-501.69380397,0.00019178,2]
[349842668,1737457841526,-500.0,0.00019178,2]
[349842669,1737457841536,-500.0,0.00019178,2]
[349842670,1737457841545,-534.45241708,0.00019178,2]
[349842671,1737457841555,-500.0,0.00019178,2]
[349842672,1737457841565,-490.87246993,0.00019178,2]
[349842673,1737457841574,-501.02211591,0.00019178,2]
[349842674,1737457841583,-500.0,0.00019178,2]
[349842675,1737457841592,-522.95,0.00019178,2]
[349842676,1737457841601,-500.0,0.00019178,2]
[349842677,1737457841611,-500.0,0.00019178,2]
[349842678,1737457841620,-500.0,0.00019178,2]
[349842679,1737457841635,-501.39604574,0.00019178,2]
[349842680,1737457841644,-383.248718,0.00019178,2]
[349842681,1737457841653,-500.0,0.00019178,2]
[349842682,1737457841663,-675.8,0.00019178,2]
[349842683,1737457841672,-500.0,0.00019178,2]
[349842684,1737457841682,-500.0,0.00019178,2]
[349842685,1737457841691,-507.43,0.00019178,2]
[349842686,1737457841701,-500.0,0.00019178,2]
[349842687,1737457841710,-500.0,0.00019178,2]
[349842688,1737457841721,-508.40022188,0.00019178,2]
[349842689,1737457841731,-500.0,0.00019178,2]
[349842690,1737457841741,-500.0,0.00019178,2]
[349842691,1737457841751,-159.534973,0.00019178,2]
[349842692,1737457841760,-505.36052917,0.00019178,2]
[349842693,1737457841771,-500.0,0.00019178,2]
[349842694,1737457841781,-1670.22,0.00019178,2]
[349842695,1737457841790,-502.6931695,0.00019178,2]
[349842696,1737457841800,-661.82,0.00019178,2]
[349842697,1737457841809,-519.03523196,0.00019178,2]
[349842698,1737457841818,-158.892989,0.00019178,2]
[349842699,1737457841828,-649.18,0.00019178,2]
[349842700,1737457841839,-500.0,0.00019178,2]
[349842701,1737457841849,-500.0,0.00019178,2]
[349842702,1737457841861,-500.0,0.00019178,2]
[349842703,1737457841873,-500.0,0.00019178,2]
[349842704,1737457841888,-1246.53,0.00019178,2]
[349842705,1737457841899,-508.84859052,0.00019178,2]
[349842706,1737457841909,-500.0,0.00019178,2]
[349842707,1737457841920,-500.0,0.00019178,2]
[349842708,1737457841930,-500.0,0.00019178,2]
[349842709,1737457841940,-500.0,0.00019178,2]
[349842710,1737457841951,-662.59,0.00019178,2]
[349842711,1737457841961,-510.30722893,0.00019178,2]
[349842712,1737457841971,-502.61043993,0.00019178,2]
[349842713,1737457841981,-712.45,0.00019178,2]
[349842714,1737457841990,-500.0,0.00019178,2]
[349842715,1737457842000,-332.59578364,0.00019178,2]
[349842716,1737457842011,-500.0,0.00019178,2]
[349842717,1737457842021,-500.0,0.00019178,2]
[349842718,1737457842031,-2017.73,0.00019178,2]
[349842719,1737457842040,-156.81141732,0.00019178,2]
[349842720,1737457842050,-500.0,0.00019178,2]
[349842721,1737457842059,-1214.83,0.00019178,2]
[349842722,1737457842068,-500.0,0.00019178,2]
[349842723,1737457842078,-502.95275064,0.00019178,2]
[349842724,1737457842087,-1000.0,0.00019178,2]
[349842725,1737457842097,-509.29031605,0.00019178,2]
[349842726,1737457842108,-610.63,0.00019178,2]
[349842727,1737457842118,-964.91,0.00019178,2]
[349842728,1737457842128,-552.06238225,0.00019178,2]
[349842729,1737457842146,-524.92,0.00019178,2]
[349842730,1737457842155,-500.0,0.00019178,2]
[349842731,1737457842165,-255.556792,0.00019178,2]
[349842732,1737457842174,-500.0,0.00019178,2]
[349842733,1737457842183,-500.0,0.00019178,2]
[349842734,1737457842194,-500.0,0.00019178,2]
[349842735,1737457842205,-502.99392352,0.00019178,2]
[349842736,1737457842215,-500.0,0.00019178,2]
[349842737,1737457842225,-500.0,0.00019178,2]
[349842738,1737457842235,-500.0,0.00019178,2]
[349842739,1737457842246,-500.0,0.00019178,2]
[349842740,1737457842256,-500.0,0.00019178,2]
[349842741,1737457842265,-518.13282476,0.00019178,2]
[349842742,1737457842276,-632.80819823,0.00019178,2]
[349842743,1737457842286,-504.40868212,0.00019178,2]
[349842744,1737457842295,-518.56,0.00019178,2]
[349842745,1737457842304,-615.19,0.00019178,2]
[349842746,1737457842313,-1365.53,0.00019178,2]
[349842747,1737457842323,-500.0,0.00019178,2]
[349842748,1737457842332,-500.0,0.00019178,2]
[349842749,1737457842342,-500.0,0.00019178,2]
[349842750,1737457842351,-500.0,0.00019178,2]
[349842751,1737457842360,-500.0,0.00019178,2]
[349842752,1737457842370,-973.38,0.00019178,2]
[349842753,1737457842379,-500.0,0.00019178,2]
[349842754,1737457842393,-500.0,0.00019178,2]
[349842755,1737457842402,-500.0,0.00019178,2]
[349842756,1737457842412,-500.0,0.00019178,2]
[349842757,1737457842422,-500.0,0.00019178,2]
[349842758,1737457842431,-668.31,0.00019178,2]
[349842759,1737457842441,-2048.3,0.00019178,2]
[349842760,1737457842451,-295.70782424,0.00019178,2]
[349842761,1737457842461,-500.0,0.00019178,2]
[349842762,1737457842470,-500.0,0.00019178,2]
[349842763,1737457842480,-500.0,0.00019178,2]
[349842764,1737457842490,-502.62828009,0.00019178,2]
[349842765,1737457842499,-1972.95,0.00019178,2]
[349842766,1737457842508,-500.0,0.00019178,2]
[349842767,1737457842517,-506.64112622,0.00019178,2]
[349842768,1737457842526,-500.0,0.00019178,2]
[349842769,1737457842535,-1104.67,0.00019178,2]
[349842770,1737457842545,-693.41,0.00019178,2]
[349842771,1737457842554,-500.0,0.00019178,2]
[349842772,1737457842563,-1043.27,0.00019178,2]
[349842773,1737457842572,-599.11,0.00019178,2]
[349842775,1737457842582,-500.0,0.00019178,2]
[349842776,1737457842591,-504.63966434,0.00019178,2]
[349842777,1737457842600,-500.0,0.00019178,2]
[349842779,1737457842609,-504.5463699,0.00019178,2]
[349842781,1737457842618,-500.0,0.00019178,2]
[349842782,1737457842628,-500.0,0.00019178,2]
[349842784,1737457842642,-502.7774876,0.00019178,2]
[349842786,1737457842652,-500.0,0.00019178,2]
[349842788,1737457842662,-1277.45,0.00019178,2]
[349842790,1737457842671,-544.1,0.00019178,2]
[349842791,1737457842681,-504.8327362,0.00019178,2]
[349842792,1737457842690,-500.0,0.00019178,2]
[349842793,1737457842699,-500.0,0.00019178,2]
[349842794,1737457842709,-500.0,0.00019178,2]
[349842795,1737457842719,-2199.24,0.00019178,2]
[349842796,1737457842728,-578.82,0.00019178,2]
[349842797,1737457842737,-500.0,0.00019178,2]
[349842798,1737457842747,-500.0,0.00019178,2]
[349842799,1737457842756,-500.0,0.00019178,2]
[349842800,1737457842766,-500.0,0.00019178,2]
[349842801,1737457842783,-500.0,0.00019178,2]
[349842803,1737457842797,-500.0,0.00019178,2]
[349842805,1737457842808,-500.0,0.00019178,2]
[349842808,1737457842819,-500.0,0.00019178,2]
[349842812,1737457842832,-500.0,0.00019178,2]
[349842816,1737457842845,-678.07,0.00019178,2]
[349842818,1737457842857,-620.88633664,0.00019178,2]
[349842819,1737457842871,-500.0,0.00019178,2]
[349842820,1737457842888,-500.0,0.00019178,2]
[349842821,1737457842901,-962.95,0.00019178,2]
[349842822,1737457842913,-500.0,0.00019178,2]
[349842823,1737457842924,-500.0,0.00019178,2]
[349842824,1737457842934,-500.0,0.00019178,2]
[349842825,1737457842947,-500.0,0.00019178,2]
[349842826,1737457842959,-500.0,0.00019178,2]
[349842827,1737457842971,-694.91,0.00019178,2]
[349842828,1737457842984,-501.29690354,0.00019178,2]
[349842829,1737457842997,-500.0,0.00019178,2]
[349842830,1737457843010,-500.0,0.00019178,2]
[349842831,1737457843023,-802.36,0.00019178,2]
[349842832,1737457843035,-288.886878,0.00019178,2]
[349842833,1737457843049,-500.0,0.00019178,2]
[349842834,1737457843061,-1780.11,0.00019178,2]
[349842835,1737457843074,-500.0,0.00019178,2]
[349842836,1737457843086,-518.80489699,0.00019178,2]
[349842837,1737457843098,-2223.58,0.00019178,2]
[349842838,1737457843112,-636.41,0.00019178,2]
[349842839,1737457843126,-502.24584191,0.00019178,2]
[349842840,1737457843142,-500.0,0.00019178,2]
[349842841,1737457843155,-252.45510089,0.00019178,2]
[349842842,1737457843168,-500.0,0.00019178,2]
[349842843,1737457843180,-500.0,0.00019178,2]
[349842844,1737457843193,-500.0,0.00019178,2]
[349842845,1737457843205,-1478.14,0.00019178,2]
[349842846,1737457843225,-500.0,0.00019178,2]
[349842847,1737457843239,-505.1099956,0.00019178,2]
[349842848,1737457843250,-500.0,0.00019178,2]
[349842849,1737457843261,-511.71926902,0.00019178,2]
[349842851,1737457843272,-801.87,0.00019178,2]
[349842853,1737457843287,-500.0,0.00019178,2]
[349842856,1737457843301,-1731.85,0.00019178,2]
[349842857,1737457843313,-500.0,0.00019178,2]
[349842858,1737457843323,-500.0,0.00019178,2]
[349842859,1737457843334,-500.94347142,0.00019178,2]
[349842860,1737457843346,-747.66,0.00019178,2]
[349842861,1737457843357,-500.0,0.00019178,2]
[349842862,1737457843369,-500.0,0.00019178,2]
[349842863,1737457843385,-500.0,0.00019178,2]
[349842864,1737457843397,-500.0,0.00019178,2]
[349842865,1737457843408,-500.0,0.00019178,2]
[349842866,1737457843420,-561.73,0.00019178,2]
[349842867,1737457843432,-500.0,0.00019178,2]
[349842868,1737457843444,-500.0,0.00019178,2]
[349842869,1737457843457,-500.0,0.00019178,2]
[349842870,1737457843469,-500.0,0.00019178,2]
[349842872,1737457843484,-553.33,0.00019178,2]
[349842875,1737457843496,-500.0,0.00019178,2]
[349842877,1737457843509,-500.0,0.00019178,2]
[349842879,1737457843520,-500.0,0.00019178,2]
[349842881,1737457843533,-1161.08,0.00019178,2]
[349842883,1737457843544,-500.0,0.00019178,2]
[349842886,1737457843556,-502.99090224,0.00019178,2]
[349842888,1737457843568,-505.56812126,0.00019178,2]
[349842890,1737457843580,-500.0,0.00019178,2]
[349842892,1737457843591,-500.0,0.00019178,2]
[349842896,1737457843603,-511.5330329,0.00019178,2]
[349842898,1737457843615,-500.0,0.00019178,2]
[349842900,1737457843626,-500.0,0.00019178,2]
[349842902,1737457843640,-508.71980161,0.00019178,2]
[349842904,1737457843651,-504.04297047,0.00019178,2]
[349842907,1737457843663,-500.0,0.00019178,2]
[349842909,1737457843675,-502.42845795,0.00019178,2]
[349842911,1737457843687,-500.0,0.00019178,2]
[349842913,1737457843698,-509.15626747,0.00019178,2]
[349842916,1737457843709,-500.0,0.00019178,2]
[349842918,1737457843721,-573.02,0.00019178,2]
[349842920,1737457843732,-500.0,0.00019178,2]
[349842922,1737457843743,-500.0,0.00019178,2]
[349842925,1737457843754,-500.0,0.00019178,2]
[349842927,1737457843765,-500.0,0.00019178,2]
[349842929,1737457843777,-500.0,0.00019178,2]
[349842931,1737457843788,-501.5392014,0.00019178,2]
[349842933,1737457843800,-561.94,0.00019178,2]
[349842936,1737457843812,-500.0,0.00019178,2]
[349842938,1737457843824,-507.49771598,0.00019178,2]
[349842940,1737457843836,-500.0,0.00019178,2]
[349842943,1737457843847,-500.0,0.00019178,2]
[349842945,1737457843859,-500.0,0.00019178,2]
[349842947,1737457843871,-500.0,0.00019178,2]
[349842949,1737457843882,-175.80722133,0.00019178,2]
[349842951,1737457843895,-535.07815553,0.00019178,2]
[349842953,1737457843906,-500.0,0.00019178,2]
[349842956,1737457843918,-500.0,0.00019178,2]
[349842958,1737457843930,-539.23,0.00019178,2]
[349842960,1737457843942,-541.55,0.00019178,2]
[349842962,1737457843953,-513.89050523,0.00019178,2]
[349842964,1737457843965,-500.0,0.00019178,2]
[349842967,1737457843977,-500.0,0.00019178,2]
[349842969,1737457843989,-500.0,0.00019178,2]
[349842971,1737457844000,-500.0,0.00019178,2]
[349842973,1737457844012,-938.77,0.00019178,2]
[349842974,1737457844023,-500.0,0.00019178,2]
[349842975,1737457844035,-518.92148406,0.00019178,2]
[349842976,1737457844047,-500.0,0.00019178,2]
[349842977,1737457844059,-500.0,0.00019178,2]
[349842978,1737457844069,-500.0,0.00019178,2]
[349842979,1737457844081,-500.0,0.00019178,2]
[349842980,1737457844093,-500.0,0.00019178,2]
[349842981,1737457844105,-500.0,0.00019178,2]
[349842982,1737457844117,-1482.95,0.00019178,2]
[349842983,1737457844128,-692.78,0.00019178,2]
[349842984,1737457844141,-165.10896101,0.00019178,2]
[349842985,1737457844152,-500.0,0.00019178,2]
[349842986,1737457844164,-500.0,0.00019178,2]
[349842987,1737457844176,-500.0,0.00019178,2]
[349842988,1737457844188,-500.0,0.00019178,2]
[349842989,1737457844203,-500.0,0.00019178,2]
[349842990,1737457844214,-500.0,0.00019178,2]
[349842991,1737457844225,-638.54,0.00019178,2]
[349842992,1737457844236,-500.0,0.00019178,2]
[349842993,1737457844249,-508.28079457,0.00019178,2]
[349842994,1737457844260,-500.0,0.00019178,2]
[349842995,1737457844271,-514.39431847,0.00019178,2]
[349842996,1737457844283,-1164.13,0.00019178,2]
[349842997,1737457844295,-500.0,0.00019178,2]
[349842998,1737457844307,-500.0,0.00019178,2]
[349842999,1737457844318,-505.83962199,0.00019178,2]
[349843000,1737457844329,-2001.08,0.00019178,2]
[349843001,1737457844340,-513.36852059,0.00019178,2]
[349843002,1737457844351,-500.0,0.00019178,2]
[349843003,1737457844362,-500.0,0.00019178,2]
[349843004,1737457844373,-583.23,0.00019178,2]
[349843005,1737457844385,-500.0,0.00019178,2]
[349843006,1737457844396,-500.0,0.00019178,2]
[349843007,1737457844408,-500.0,0.00019178,2]
[349843008,1737457844419,-500.0,0.00019178,2]
[349843009,1737457844430,-500.0,0.00019178,2]
[349843010,1737457844442,-500.0,0.00019178,2]
[349843011,1737457844454,-644.1,0.00019178,2]
[349843012,1737457844465,-500.0,0.00019178,2]
[349843013,1737457844476,-500.0,0.00019178,2]
[349843014,1737457844486,-500.0,0.00019178,2]
[349843015,1737457844495,-1288.2,0.00019178,2]
[349843016,1737457844504,-503.99624445,0.00019178,2]
[349843017,1737457844514,-500.0,0.00019178,2]
[349843018,1737457844524,-503.61901759,0.00019178,2]
[349843019,1737457844533,-500.0,0.00019178,2]
[349843020,1737457844543,-505.16553549,0.00019178,2]
[349843021,1737457844552,-500.0,0.00019178,2]
[349843022,1737457844561,-500.0,0.00019178,2]
[349843023,1737457844570,-500.0,0.00019178,2]
[349843024,1737457844580,-500.53846084,0.00019178,2]
[349843025,1737457844589,-755.39,0.00019178,2]
[349843026,1737457844598,-500.0,0.00019178,2]
[349843027,1737457844607,-3006.28,0.00019178,2]
[349843028,1737457844616,-502.4346513,0.00019178,2]
[349843029,1737457844625,-500.0,0.00019178,2]
[349843030,1737457844635,-524.14362536,0.00019178,2]
[349843031,1737457844644,-500.0,0.00019178,2]
[349843032,1737457844654,-1295.2,0.00019178,2]
[349843033,1737457844663,-506.53579619,0.00019178,2]
[349843034,1737457844673,-500.0,0.00019178,2]
[349843035,1737457844682,-500.0,0.00019178,2]
[349843036,1737457844691,-500.0,0.00019178,2]
[349843037,1737457844983,-188.80689888,0.00019178,2]
[349843038,1737457845021,-802.5,0.00019256,2]
[349843039,1737457845035,-169.92,0.00019256,2]
[349843040,1737457845044,-1386.67098503,0.00019303,2]
[349843041,1737457845053,-250.0,0.00019328,2]
[349843042,1737457845063,-999.99,0.00019339,2]
[349843043,1737457845072,-9999.99,0.00019339,2]
[349843044,1737457845081,-9999.99,0.00019339,2]
[349843045,1737457845091,-9999.99,0.00019339,2]
[349843046,1737457845100,-150.99,0.00019339,2]
[349843047,1737457845110,-3717.3,0.00019339,2]
[349843048,1737457845119,-1091.69,0.00019339,2]
[349843049,1737457845128,-150.99,0.00019339,2]
[349843050,1737457845138,-6903.3831826,0.00019392,2]
[349843051,1737457845147,-300.0,0.00019393,2]
[349843052,1737457845157,-209.37814851,0.000194,2]
[349843053,1737457845166,-792.95143766,0.0001941,2]
[349843054,1737457845175,-533.07,0.0001942,2]
[349843055,1737457845184,-1000.0,0.00019446,2]
[349843056,1737457845194,-500.0,0.00019451,2]
[349843057,1737457845203,-505.1300128,0.00019451,2]
[349843058,1737457845215,-500.0,0.00019451,2]
[349843059,1737457845224,-601.11481853,0.00019452,2]
[349843060,1737457845233,-501.40852191,0.00019452,2]
[349843061,1737457845242,-500.0,0.00019452,2]
[349843062,1737457845251,-503.03008531,0.00019452,2]
[349843063,1737457845261,-500.0,0.00019452,2]
[349843064,1737457845271,-483.55297968,0.00019452,2]
[349843065,1737457845281,-500.0,0.00019452,2]
[349843066,1737457845293,-500.0,0.00019452,2]
[349843067,1737457845303,-500.0,0.00019452,2]
[349843068,1737457845313,-501.26794062,0.00019452,2]
[349843069,1737457845324,-500.0,0.00019452,2]
[349843070,1737457845335,-500.0,0.00019452,2]
[349843071,1737457845345,-500.0,0.00019452,2]
[349843072,1737457845355,-500.0,0.00019452,2]
[349843073,1737457845365,-500.0,0.00019452,2]
[349843074,1737457845376,-500.0,0.00019452,2]
[349843075,1737457845386,-500.0,0.00019452,2]
[349843076,1737457845396,-500.0,0.00019452,2]
[349843077,1737457845406,-500.0,0.00019452,2]
[349843078,1737457845416,-500.0,0.00019452,2]